[Event "South Island Championships 2023"]
[Site "Oamaru, New Zealand"]
[Date "????.??.??"]
[Round "6.9"]
[White "Dolejs, Dan"]
[Black "Kerr, Atlas"]
[Result "0-1"]
[TimeControl "90 + 30"]
[WhiteFideId "4301692"]
[BlackFideId "4319486"]
[WhiteElo "1800"]
[BlackElo "1853"]

1. e4 {[%clk 01:30:46]} {[%emt 00:00:03]} c6 {[%clk 01:30:34]} {[%emt
00:00:38]} 2. Nf3 {[%clk 01:29:51]} {[%emt 00:01:23]} d5 {[%clk 01:30:41]}
{[%emt 00:00:24]} 3. exd5 {[%clk 01:30:00]} {[%emt 00:00:21]} cxd5 {[%clk
01:30:53]} {[%emt 00:00:19]} 4. Bb5+ {[%clk 01:29:57]} {[%emt 00:00:32]} Bd7
{[%clk 01:29:39]} {[%emt 00:01:44]} 5. Bxd7+ {[%clk 01:30:17]} {[%emt
00:00:10]} Nxd7 {[%clk 01:30:06]} {[%emt 00:00:04]} 6. O-O {[%clk 01:30:22]}
{[%emt 00:00:25]} Ngf6 {[%emt 00:02:44]} 7. d4 {[%clk 01:30:33]} {[%emt
00:00:17]} e6 {[%clk 01:27:39]} {[%emt 00:00:44]} 8. Bg5 {[%clk 01:29:35]}
{[%emt 00:01:27]} Qb6 {[%clk 01:22:50]} {[%emt 00:05:20]} 9. b3 {[%clk
01:29:16]} {[%emt 00:00:48]} Ne4 {[%clk 01:19:47]} {[%emt 00:03:34]} 10. a4
{[%clk 01:28:28]} {[%emt 00:01:19]} Rc8 {[%clk 01:13:53]} {[%emt 00:06:24]} 11.
a5 {[%clk 01:27:37]} {[%emt 00:01:21]} Qc6 {[%clk 01:13:34]} {[%emt 00:00:49]}
12. Be3 {[%clk 01:19:46]} {[%emt 00:08:20]} Qxc2 {[%clk 01:06:55]} {[%emt
00:07:10]} 13. Qxc2 {[%clk 01:19:01]} {[%emt 00:01:13]} Rxc2 {[%clk 01:07:18]}
{[%emt 00:00:08]} 14. a6 {[%clk 01:19:15]} {[%emt 00:00:16]} b6 {[%clk
01:06:01]} {[%emt 00:01:48]} 15. Na3 {[%clk 01:18:43]} {[%emt 00:01:01]} Bxa3
{[%clk 01:06:16]} {[%emt 00:00:15]} 16. Rxa3 {[%clk 01:19:03]} {[%emt
00:00:11]} Ke7 {[%clk 01:01:54]} {[%emt 00:04:52]} 17. Ne5 {[%clk 01:13:26]}
{[%emt 00:06:06]} Nxe5 {[%clk 00:58:13]} {[%emt 00:04:11]} 18. dxe5 {[%clk
01:13:47]} {[%emt 00:00:09]} f6 {[%clk 00:55:32]} {[%emt 00:03:11]} 19. f3
{[%clk 01:13:16]} {[%emt 00:01:00]} Nc5 {[%clk 00:55:58]} {[%emt 00:00:05]} 20.
b4 {[%clk 01:13:14]} {[%emt 00:00:32]} Nd7 {[%clk 00:56:17]} {[%emt 00:00:11]}
21. f4 {[%clk 01:10:47]} {[%emt 00:02:57]} Rhc8 {[%clk 00:55:11]} {[%emt
00:01:36]} 22. exf6+ {[%clk 01:10:05]} {[%emt 00:01:11]} gxf6 {[%clk 00:55:32]}
{[%emt 00:00:09]} 23. g4 {[%clk 01:09:35]} {[%emt 00:01:00]} R8c3 {[%clk
00:52:56]} {[%emt 00:03:07]} 24. Rxc3 {[%clk 01:09:49]} {[%emt 00:00:15]} Rxc3
{[%clk 00:53:20]} {[%emt 00:00:07]} 25. Bd2 {[%clk 01:08:57]} {[%emt 00:01:22]}
Rc2 {[%clk 00:51:02]} {[%emt 00:02:49]} 26. Bc1 {[%clk 01:08:42]} {[%emt
00:00:43]} Ra2 {[%clk 00:45:48]} {[%emt 00:05:45]} 27. f5 {[%clk 01:08:13]}
{[%emt 00:00:59]} e5 {[%clk 00:46:03]} {[%emt 00:00:16]} 28. b5 {[%clk
01:07:49]} {[%emt 00:00:53]} d4 {[%clk 00:45:32]} {[%emt 00:01:01]} 29. g5
{[%clk 01:07:48]} {[%emt 00:00:30]} Kf7 {[%clk 00:44:18]} {[%emt 00:01:45]} 30.
h4 {[%clk 01:07:03]} {[%emt 00:01:14]} d3 {[%clk 00:43:45]} {[%emt 00:01:05]}
31. Rd1 {[%clk 01:03:39]} {[%emt 00:03:52]} e4 {[%clk 00:43:46]} {[%emt
00:00:30]} 32. h5 {[%clk 01:02:31]} {[%emt 00:01:38]} fxg5 {[%clk 00:42:50]}
{[%emt 00:01:26]} 33. Bxg5 {[%clk 01:02:43]} {[%emt 00:00:17]} Rb2 {[%clk
00:42:29]} {[%emt 00:00:52]} 34. Re1 {[%clk 01:01:16]} {[%emt 00:01:56]} Ne5
{[%clk 00:35:39]} {[%emt 00:07:21]} 35. Rxe4 {[%clk 00:58:23]} {[%emt
00:03:22]} Nf3+ {[%clk 00:36:04]} {[%emt 00:00:06]} 36. Kf1 {[%clk 00:58:22]}
{[%emt 00:00:30]} Nxg5 {[%clk 00:36:30]} {[%emt 00:00:04]} 37. Rd4 {[%clk
00:58:21]} {[%emt 00:00:31]} Rxb5 {[%clk 00:32:43]} {[%emt 00:04:18]} 38. Rd7+
{[%clk 00:58:10]} {[%emt 00:00:42]} Ke8 {[%clk 00:31:35]} {[%emt 00:01:36]} 39.
Rxa7 {[%clk 00:57:39]} {[%emt 00:01:01]} Rb1+ {[%clk 00:31:31]} {[%emt
00:00:35]} 40. Kf2 {[%clk 00:54:46]} {[%emt 00:03:22]} d2 {[%clk 00:31:57]}
{[%emt 00:00:05]} 41. Ra8+ {[%clk 00:53:59]} {[%emt 00:01:17]} Kd7 {[%emt
00:00:04]} 42. Ra7+ {[%clk 00:54:03]} {[%emt 00:00:25]} Kc6 {[%clk 00:32:49]}
{[%emt 00:00:05]} 43. Rg7 {[%clk 00:54:10]} {[%emt 00:00:22]} d1=Q {[%clk
00:32:47]} {[%emt 00:00:33]} 44. Rxg5 {[%clk 00:53:49]} {[%emt 00:00:51]} Qd2+
{[%clk 00:32:54]} {[%emt 00:00:24]} 0-1

[Event "South Island Championships 2023"]
[Site "Oamaru, New Zealand"]
[Date "????.??.??"]
[Round "6.8"]
[White "Mayrhuber, Nikola"]
[Black "Anikonov, Artem"]
[Result "1-0"]
[TimeControl "90 + 30"]
[WhiteFideId "1637819"]
[BlackFideId "34339876"]
[WhiteElo "2059"]
[BlackElo "1721"]

1. d4 {[%clk 01:30:17]} {[%emt 00:00:43]} d5 {[%clk 01:30:54]} {[%emt
00:00:07]} 2. c4 {[%clk 01:30:43]} {[%emt 00:00:04]} e6 {[%clk 01:31:16]}
{[%emt 00:00:08]} 3. Nc3 {[%clk 01:31:08]} {[%emt 00:00:06]} Nf6 {[%clk
01:31:40]} {[%emt 00:00:05]} 4. cxd5 {[%clk 01:31:28]} {[%emt 00:00:10]} exd5
{[%clk 01:31:48]} {[%emt 00:00:22]} 5. Bg5 {[%clk 01:31:40]} {[%emt 00:00:18]}
Be6 {[%clk 01:31:43]} {[%emt 00:00:35]} 6. e3 {[%clk 01:31:33]} {[%emt
00:00:37]} c5 {[%clk 01:31:51]} {[%emt 00:00:21]} 7. Bb5+ {[%clk 01:24:40]}
{[%emt 00:07:24]} Nbd7 {[%clk 01:30:47]} {[%emt 00:01:34]} 8. Nf3 {[%clk
01:24:14]} {[%emt 00:00:55]} a6 {[%clk 01:30:51]} {[%emt 00:00:27]} 9. Bxd7+
{[%clk 01:20:49]} {[%emt 00:03:54]} Qxd7 {[%clk 01:30:50]} {[%emt 00:00:31]} 10.
Ne5 {[%clk 01:15:57]} {[%emt 00:05:22]} Qc7 {[%clk 01:30:41]} {[%emt 00:00:39]}
11. Bxf6 {[%clk 01:14:52]} {[%emt 00:01:35]} gxf6 {[%clk 01:31:04]} {[%emt
00:00:07]} 12. Qa4+ {[%clk 01:14:53]} {[%emt 00:00:31]} Bd7 {[%clk 01:29:58]}
{[%emt 00:01:35]} 13. Nxd7 {[%clk 01:08:10]} {[%emt 00:07:13]} Qxd7 {[%clk
01:30:21]} {[%emt 00:00:05]} 14. Qxd7+ {[%clk 01:07:19]} {[%emt 00:01:22]} Kxd7
{[%clk 01:30:46]} {[%emt 00:00:06]} 15. Nxd5 {[%clk 01:07:36]} {[%emt
00:00:13]} Kc6 {[%clk 01:30:23]} {[%emt 00:00:53]} 16. e4 {[%clk 01:04:53]}
{[%emt 00:03:13]} f5 {[%clk 01:29:58]} {[%emt 00:00:54]} 17. f3 {[%clk
01:03:10]} {[%emt 00:02:14]} fxe4 {[%clk 01:30:19]} {[%emt 00:00:09]} 18. fxe4
{[%clk 01:03:36]} {[%emt 00:00:03]} Re8 {[%clk 01:29:07]} {[%emt 00:01:42]} 19.
Nf6 {[%clk 01:03:35]} {[%emt 00:00:31]} Rd8 {[%clk 01:28:03]} {[%emt 00:01:34]}
20. d5+ {[%clk 01:03:33]} {[%emt 00:00:33]} Kd6 {[%clk 01:28:26]} {[%emt
00:00:07]} 21. Rf1 {[%clk 01:02:41]} {[%emt 00:01:23]} Bg7 {[%clk 01:28:30]}
{[%emt 00:00:25]} 22. Ke2 {[%clk 01:01:57]} {[%emt 00:01:13]} Bxf6 {[%clk
01:27:51]} {[%emt 00:01:09]} 23. Rxf6+ {[%clk 01:02:23]} {[%emt 00:00:05]} Ke5
{[%clk 01:28:09]} {[%emt 00:00:12]} 24. Raf1 {[%clk 01:02:12]} {[%emt
00:00:40]} Kxe4 {[%clk 01:27:57]} {[%emt 00:00:42]} 25. R6f5 {[%clk 01:02:01]}
{[%emt 00:00:41]} 1-0

[Event "South Island Championships 2023"]
[Site "Oamaru, New Zealand"]
[Date "????.??.??"]
[Round "6.1"]
[White "Lukey, Stephen G"]
[Black "Zhang, Kendrick Botong"]
[Result "0-1"]
[TimeControl "90 + 30"]
[WhiteFideId "4300386"]
[BlackFideId "4307704"]
[WhiteElo "2307"]
[BlackElo "2067"]

1. d4 {[%clk 01:29:20]} {[%emt 00:01:39]} Nf6 {[%clk 01:30:53]} {[%emt
00:00:06]} 2. c4 {[%clk 01:29:46]} {[%emt 00:00:04]} g6 {[%clk 01:31:19]}
{[%emt 00:00:05]} 3. Nc3 {[%clk 01:30:12]} {[%emt 00:00:05]} d5 {[%clk
01:31:45]} {[%emt 00:00:03]} 4. Nf3 {[%clk 01:28:22]} {[%emt 00:02:20]} Bg7
{[%clk 01:32:07]} {[%emt 00:00:08]} 5. h4 {[%clk 01:28:48]} {[%emt 00:00:04]}
O-O {[%clk 01:14:57]} {[%emt 00:17:40]} 6. cxd5 {[%clk 01:29:05]} {[%emt
00:00:13]} Nxd5 {[%clk 01:15:21]} {[%emt 00:00:06]} 7. h5 {[%clk 01:29:29]}
{[%emt 00:00:06]} c5 {[%clk 01:05:42]} {[%emt 00:10:08]} 8. hxg6 {[%clk
01:29:32]} {[%emt 00:00:28]} hxg6 {[%clk 01:05:53]} {[%emt 00:00:16]} 9. Bh6
{[%clk 01:29:22]} {[%emt 00:00:43]} Nxc3 {[%clk 00:55:06]} {[%emt 00:11:17]} 10.
bxc3 {[%clk 01:27:54]} {[%emt 00:01:59]} cxd4 {[%clk 00:53:18]} {[%emt
00:02:17]} 11. Qc1 {[%clk 01:19:40]} {[%emt 00:08:43]} d3 {[%clk 00:37:30]}
{[%emt 00:16:19]} 12. exd3 {[%clk 01:18:27]} {[%emt 00:01:43]} Nc6 {[%clk
00:36:25]} {[%emt 00:01:35]} 13. Bxg7 {[%clk 01:18:38]} {[%emt 00:00:19]} Kxg7
{[%clk 00:36:50]} {[%emt 00:00:05]} 14. Qh6+ {[%clk 01:18:53]} {[%emt
00:00:15]} Kf6 {[%clk 00:37:15]} {[%emt 00:00:05]} 15. Ng5 {[%clk 01:10:12]}
{[%emt 00:09:11]} Rg8 {[%clk 00:25:53]} {[%emt 00:11:52]} 16. Ne4+ {[%clk
00:55:13]} {[%emt 00:15:28]} Ke6 {[%clk 00:24:12]} {[%emt 00:02:11]} 17. Qf4
{[%clk 00:49:22]} {[%emt 00:06:21]} f5 {[%clk 00:13:58]} {[%emt 00:10:44]} 18.
Nc5+ {[%clk 00:35:56]} {[%emt 00:13:56]} Kf6 {[%clk 00:13:53]} {[%emt
00:00:35]} 19. d4 {[%clk 00:34:51]} {[%emt 00:01:35]} Rh8 {[%clk 00:10:02]}
{[%emt 00:04:21]} 20. Rxh8 {[%clk 00:30:41]} {[%emt 00:04:41]} Qxh8 {[%clk
00:10:20]} {[%emt 00:00:11]} 21. d5 {[%clk 00:25:15]} {[%emt 00:05:57]} Kf7
{[%clk 00:09:35]} {[%emt 00:01:15]} 22. Kd2 {[%clk 00:16:39]} {[%emt 00:09:05]}
Na5 {[%clk 00:01:43]} {[%emt 00:08:23]} 23. Qc7 {[%clk 00:10:55]} {[%emt
00:06:14]} b6 {[%clk 00:01:40]} {[%emt 00:00:33]} 24. Nd3 {[%clk 00:01:42]}
{[%emt 00:09:43]} Bb7 {[%clk 00:00:39]} {[%emt 00:01:31]} 25. Re1 {[%clk
00:01:19]} {[%emt 00:00:52]} Qd8 {[%clk 00:00:32]} {[%emt 00:00:37]} 26. Ne5+
{[%clk 00:00:39]} {[%emt 00:01:11]} Kg7 {[%clk 00:00:57]} {[%emt 00:00:05]} 27.
Qxd8 {[%clk 00:00:39]} {[%emt 00:00:30]} Rxd8 {[%clk 00:01:23]} {[%emt
00:00:04]} 28. c4 {[%clk 00:01:00]} {[%emt 00:00:08]} e6 {[%clk 00:01:25]}
{[%emt 00:00:28]} 29. Kc3 {[%clk 00:00:42]} {[%emt 00:00:49]} exd5 {[%clk
00:01:48]} {[%emt 00:00:08]} 30. cxd5 {[%clk 00:00:54]} {[%emt 00:00:18]} Rxd5
{[%clk 00:01:35]} {[%emt 00:00:42]} 31. f4 {[%clk 00:01:00]} {[%emt 00:00:23]}
Rc5+ {[%clk 00:01:53]} {[%emt 00:00:13]} 32. Kb2 {[%clk 00:00:58]} {[%emt
00:00:32]} Be4 {[%clk 00:02:03]} {[%emt 00:00:20]} 33. Rd1 {[%clk 00:01:13]}
{[%emt 00:00:15]} Rd5 {[%clk 00:01:11]} {[%emt 00:01:21]} 34. Rc1 {[%clk
00:01:20]} {[%emt 00:00:23]} Rc5 {[%clk 00:00:38]} {[%emt 00:01:04]} 35. Rd1
{[%clk 00:01:31]} {[%emt 00:00:18]} Rd5 {[%clk 00:00:47]} {[%emt 00:00:21]} 36.
Rc1 {[%clk 00:01:56]} {[%emt 00:00:05]} Bxg2 {[%clk 00:00:35]} {[%emt
00:00:42]} 37. Bxg2 {[%clk 00:02:13]} {[%emt 00:00:13]} Rd2+ {[%clk 00:01:00]}
{[%emt 00:00:04]} 38. Rc2 {[%clk 00:02:35]} {[%emt 00:00:08]} Rd4 {[%clk
00:00:57]} {[%emt 00:00:34]} 39. Rf2 {[%clk 00:00:49]} {[%emt 00:02:16]} Kf6
{[%clk 00:01:03]} {[%emt 00:00:24]} 40. Nc6 {[%clk 00:00:45]} {[%emt 00:00:34]}
Nxc6 {[%clk 00:00:59]} {[%emt 00:00:34]} 41. Bxc6 {[%clk 00:01:04]} {[%emt
00:00:09]} g5 {[%clk 00:01:06]} {[%emt 00:00:24]} 42. fxg5+ {[%clk 00:01:31]}
{[%emt 00:00:04]} Kxg5 {[%clk 00:01:29]} {[%emt 00:00:06]} 43. Kc3 {[%clk
00:01:49]} {[%emt 00:00:10]} Rd6 {[%clk 00:01:24]} {[%emt 00:00:37]} 44. Bb5
{[%clk 00:01:26]} {[%emt 00:00:53]} f4 {[%clk 00:01:19]} {[%emt 00:00:36]} 45.
Rd2 {[%clk 00:01:17]} {[%emt 00:00:38]} Re6 {[%clk 00:01:13]} {[%emt 00:00:37]}
46. Rd7 {[%clk 00:01:09]} {[%emt 00:00:37]} Re3+ {[%clk 00:00:36]} {[%emt
00:01:08]} 47. Kd4 {[%clk 00:01:08]} {[%emt 00:00:29]} Ra3 {[%clk 00:01:00]}
{[%emt 00:00:07]} 48. Bc4 {[%clk 00:01:11]} {[%emt 00:00:24]} f3 {[%clk
00:01:05]} {[%emt 00:00:29]} 49. Bb3 {[%clk 00:00:55]} {[%emt 00:00:45]} a5
{[%clk 00:00:49]} {[%emt 00:00:47]} 50. Kc3 {[%clk 00:00:35]} {[%emt 00:00:50]}
a4 {[%clk 00:00:33]} {[%emt 00:00:46]} 51. Rd5+ {[%clk 00:01:01]} {[%emt
00:00:03]} Kf4 {[%clk 00:00:39]} {[%emt 00:00:24]} 52. Rd4+ {[%clk 00:01:16]}
{[%emt 00:00:15]} Ke3 {[%clk 00:00:50]} {[%emt 00:00:19]} 53. Rd3 {[%clk
00:00:41]} {[%emt 00:01:05]} Ke2 {[%clk 00:00:46]} {[%emt 00:00:35]} 54. Rd2+
{[%clk 00:01:01]} {[%emt 00:00:09]} Ke3 {[%clk 00:00:54]} {[%emt 00:00:22]} 55.
Rd3 {[%clk 00:01:09]} {[%emt 00:00:22]} Ke4 {[%clk 00:00:34]} {[%emt 00:00:51]}
56. Rd4+ {[%clk 00:01:22]} {[%emt 00:00:16]} Ke5 {[%clk 00:00:36]} {[%emt
00:00:29]} 57. Rd5+ {[%clk 00:00:40]} {[%emt 00:01:13]} Ke6 {[%clk 00:00:37]}
{[%emt 00:00:28]} 58. Rd3+ {[%clk 00:00:39]} {[%emt 00:00:30]} axb3 {[%clk
00:00:54]} {[%emt 00:00:14]} 59. axb3 {[%clk 00:00:44]} {[%emt 00:00:25]} f2
{[%clk 00:01:09]} {[%emt 00:00:15]} 60. Rf3 {[%clk 00:00:37]} {[%emt 00:00:37]}
Ra2 {[%clk 00:01:27]} {[%emt 00:00:12]} 61. Kc4 {[%clk 00:00:55]} {[%emt
00:00:10]} Ke5 {[%clk 00:01:13]} {[%emt 00:00:45]} 62. Kb5 {[%clk 00:01:15]}
{[%emt 00:00:10]} Ke4 {[%clk 00:01:31]} {[%emt 00:00:12]} 63. Rf8 {[%clk
00:01:33]} {[%emt 00:00:11]} Rb2 {[%clk 00:01:18]} {[%emt 00:00:45]} 64. b4
{[%clk 00:00:44]} {[%emt 00:01:19]} Ke3 {[%clk 00:01:27]} {[%emt 00:00:21]} 65.
Rf7 {[%clk 00:00:39]} {[%emt 00:00:35]} Ke2 {[%clk 00:01:16]} {[%emt 00:00:41]}
66. Re7+ {[%clk 00:01:04]} {[%emt 00:00:05]} Kd1 {[%clk 00:01:37]} {[%emt
00:00:08]} 67. Rf7 {[%clk 00:01:13]} {[%emt 00:00:20]} Ke1 {[%emt 00:02:32]} 68.
Re7+ Re2 69. Rf7 Rd2 0-1

[Event "South Island Championships 2023"]
[Site "Oamaru, New Zealand"]
[Date "????.??.??"]
[Round "6.10"]
[White "McConnell, Jack"]
[Black "Wang, Justin Zhide"]
[Result "1/2-1/2"]
[TimeControl "90 + 30"]
[WhiteFideId "4321871"]
[BlackFideId "4312830"]
[WhiteElo "1640"]
[BlackElo "1849"]

1. e4 {[%clk 01:30:57]} {[%emt 00:00:02]} e6 {[%clk 01:30:59]} {[%emt
00:00:03]} 2. d4 {[%clk 01:31:20]} {[%emt 00:00:06]} d5 {[%clk 01:31:27]}
{[%emt 00:00:03]} 3. Nc3 {[%clk 01:31:41]} {[%emt 00:00:07]} Nf6 {[%clk
01:31:55]} {[%emt 00:00:04]} 4. Bg5 {[%clk 01:32:02]} {[%emt 00:00:07]} Be7
{[%clk 01:32:22]} {[%emt 00:00:04]} 5. e5 {[%clk 01:32:21]} {[%emt 00:00:11]}
Nfd7 {[%emt 00:00:03]} 6. Bxe7 {[%clk 01:32:38]} {[%emt 00:00:12]} Qxe7 {[%clk
01:33:15]} {[%emt 00:00:05]} 7. f4 {[%clk 01:32:58]} {[%emt 00:00:09]} a6
{[%clk 01:33:43]} {[%emt 00:00:03]} 8. Nf3 {[%clk 01:33:00]} {[%emt 00:00:27]}
c5 {[%clk 01:34:08]} {[%emt 00:00:06]} 9. Bd3 {[%clk 01:33:10]} {[%emt
00:00:19]} Nc6 {[%clk 01:34:35]} {[%emt 00:00:04]} 10. O-O {[%clk 01:29:07]}
{[%emt 00:04:33]} cxd4 {[%clk 01:33:56]} {[%emt 00:01:10]} 11. Ne2 {[%clk
01:29:09]} {[%emt 00:00:27]} Qc5 {[%clk 01:34:11]} {[%emt 00:00:15]} 12. a3
{[%clk 01:28:03]} {[%emt 00:01:36]} b5 {[%clk 01:34:25]} {[%emt 00:00:16]} 13.
b4 {[%clk 01:27:38]} {[%emt 00:00:55]} Qb6 {[%clk 01:33:42]} {[%emt 00:01:13]}
14. Qe1 {[%clk 01:26:51]} {[%emt 00:01:18]} Bb7 {[%clk 01:31:58]} {[%emt
00:02:13]} 15. Qf2 {[%clk 01:25:36]} {[%emt 00:01:45]} Rc8 {[%clk 01:31:47]}
{[%emt 00:00:42]} 16. Nexd4 {[%clk 01:24:10]} {[%emt 00:01:55]} Nxd4 {[%clk
01:32:08]} {[%emt 00:00:09]} 17. Qxd4 {[%clk 01:22:58]} {[%emt 00:01:42]} Qxd4+
{[%clk 01:24:29]} {[%emt 00:08:09]} 18. Nxd4 {[%clk 01:20:38]} {[%emt
00:02:49]} Nb6 {[%clk 01:24:17]} {[%emt 00:00:43]} 19. f5 {[%clk 01:05:38]}
{[%emt 00:15:29]} Ke7 {[%clk 01:07:31]} {[%emt 00:17:17]} 20. fxe6 {[%clk
01:03:46]} {[%emt 00:02:22]} fxe6 {[%clk 01:06:56]} {[%emt 00:01:05]} 21. Nf3
{[%clk 01:03:52]} {[%emt 00:00:24]} Nc4 {[%clk 01:01:33]} {[%emt 00:05:54]} 22.
Bxc4 {[%clk 01:03:55]} {[%emt 00:00:26]} dxc4 {[%clk 01:01:41]} {[%emt
00:00:23]} 23. Ng5 {[%clk 01:02:10]} {[%emt 00:02:14]} Rcf8 {[%clk 01:01:10]}
{[%emt 00:01:01]} 24. Rxf8 {[%clk 01:02:30]} {[%emt 00:00:10]} Rxf8 {[%clk
01:01:34]} {[%emt 00:00:07]} 25. Rf1 {[%clk 01:01:04]} {[%emt 00:01:55]} Rxf1+
{[%clk 01:01:09]} {[%emt 00:00:56]} 26. Kxf1 {[%clk 01:01:26]} {[%emt
00:00:08]} h6 {[%clk 01:01:38]} 27. Nh3 {[%clk 01:00:28]} {[%emt 00:01:27]} g5
{[%clk 01:00:43]} {[%emt 00:01:26]} 28. Nf2 {[%clk 00:59:52]} {[%emt 00:01:05]}
Kf7 {[%clk 01:00:40]} {[%emt 00:00:33]} 29. Ng4 {[%clk 00:59:51]} {[%emt
00:00:31]} Kg6 {[%clk 01:00:52]} {[%emt 00:00:19]} 30. Ne3 {[%clk 01:00:08]}
{[%emt 00:00:12]} h5 {[%clk 01:00:02]} {[%emt 00:01:20]} 31. g3 {[%clk
00:59:49]} {[%emt 00:00:49]} g4 {[%clk 00:59:13]} {[%emt 00:01:19]} 32. c3
{[%clk 00:59:57]} {[%emt 00:00:22]} Bd5 {[%clk 00:59:27]} {[%emt 00:00:16]} 33.
Kf2 {[%clk 00:59:49]} {[%emt 00:00:39]} Bf3 {[%clk 00:59:20]} {[%emt 00:00:36]}
34. Kg1 {[%clk 00:59:57]} {[%emt 00:00:21]} h4 {[%clk 00:57:06]} {[%emt
00:02:45]} 35. Kf2 {[%clk 01:00:19]} {[%emt 00:00:08]} hxg3+ {[%clk 00:54:30]}
{[%emt 00:03:06]} 36. hxg3 {[%clk 01:00:40]} {[%emt 00:00:09]} Be4 {[%clk
00:54:10]} {[%emt 00:00:51]} 37. Ke1 {[%clk 01:00:54]} {[%emt 00:00:14]} Bf3
{[%clk 00:46:13]} {[%emt 00:08:28]} 38. Kd2 {[%clk 01:00:48]} {[%emt 00:00:36]}
Kg5 {[%clk 00:40:49]} {[%emt 00:05:55]} 39. Kc1 {[%clk 01:00:59]} {[%emt
00:00:18]} Kg6 {[%clk 00:38:56]} {[%emt 00:02:23]} 40. Kb2 {[%clk 01:01:05]}
{[%emt 00:00:24]} Kf7 {[%clk 00:37:28]} {[%emt 00:01:59]} 41. a4 {[%clk
00:56:53]} {[%emt 00:04:41]} Kg6 {[%clk 00:30:02]} {[%emt 00:07:56]} 42. axb5
{[%clk 00:55:54]} {[%emt 00:01:29]} axb5 {[%clk 00:30:28]} {[%emt 00:00:04]} 43.
Ka3 {[%clk 00:56:06]} {[%emt 00:00:18]} Kg5 {[%clk 00:29:57]} {[%emt 00:01:01]}
44. Kb2 {[%clk 00:56:30]} {[%emt 00:00:06]} Bd5 {[%clk 00:29:15]} {[%emt
00:01:12]} 45. Kc1 {[%clk 00:56:32]} {[%emt 00:00:27]} Be4 {[%clk 00:27:10]}
{[%emt 00:02:36]} 46. Kd2 {[%clk 00:56:45]} {[%emt 00:00:16]} Bd3 {[%clk
00:26:42]} {[%emt 00:00:58]} 47. Ke1 {[%clk 00:56:22]} {[%emt 00:00:53]}
1/2-1/2

[Event "South Island Championships 2023"]
[Site "Oamaru, New Zealand"]
[Date "????.??.??"]
[Round "6.7"]
[White "Cummings, Nick"]
[Black "Summers, Paul G"]
[Result "1-0"]
[TimeControl "90 + 30"]
[WhiteFideId "4301218"]
[BlackFideId "3232883"]
[WhiteElo "2094"]
[BlackElo "1799"]

1. Nf3 {[%clk 01:30:53]} {[%emt 00:00:06]} d6 {[%clk 01:30:30]} {[%emt
00:00:31]} 2. d4 {[%clk 01:29:59]} {[%emt 00:01:24]} Nf6 {[%clk 01:30:53]}
{[%emt 00:00:06]} 3. Nc3 {[%clk 01:29:58]} {[%emt 00:00:31]} Bf5 {[%clk
01:30:21]} {[%emt 00:01:02]} 4. Bf4 {[%clk 01:25:23]} {[%emt 00:05:05]} Na6
{[%clk 01:29:06]} {[%emt 00:01:46]} 5. e3 {[%clk 01:20:07]} {[%emt 00:05:46]}
Nb4 {[%clk 01:27:40]} {[%emt 00:01:56]} 6. Rc1 {[%clk 01:20:27]} {[%emt
00:00:10]} a5 {[%clk 01:26:57]} {[%emt 00:01:13]} 7. Be2 {[%clk 01:16:32]}
{[%emt 00:04:24]} h6 {[%clk 01:20:29]} {[%emt 00:06:59]} 8. O-O {[%clk
01:14:39]} {[%emt 00:02:23]} g5 {[%clk 01:19:17]} {[%emt 00:01:41]} 9. Bg3
{[%clk 01:14:09]} {[%emt 00:01:00]} Bg7 {[%clk 01:18:15]} {[%emt 00:01:33]} 10.
Nd2 {[%clk 01:09:37]} {[%emt 00:05:02]} Qd7 {[%clk 01:13:56]} {[%emt 00:04:49]}
11. a3 {[%emt 00:08:28]} Na6 {[%clk 01:14:13]} 12. e4 {[%clk 00:58:03]} {[%emt
00:04:18]} Bg6 {[%clk 01:13:51]} {[%emt 00:00:52]} 13. e5 {[%clk 00:52:21]}
{[%emt 00:06:13]} dxe5 {[%clk 01:13:12]} {[%emt 00:01:09]} 14. dxe5 {[%clk
00:52:26]} {[%emt 00:00:25]} Nd5 {[%clk 01:11:53]} {[%emt 00:01:49]} 15. Nxd5
{[%clk 00:52:02]} {[%emt 00:00:55]} Qxd5 {[%clk 01:11:35]} {[%emt 00:00:47]} 16.
Bc4 {[%clk 00:47:37]} {[%emt 00:04:54]} Qc5 {[%clk 01:10:15]} {[%emt 00:01:51]}
17. Qe2 {[%clk 00:42:13]} {[%emt 00:05:54]} c6 {[%clk 01:04:20]} {[%emt
00:06:24]} 18. Ne4 {[%clk 00:40:50]} {[%emt 00:01:54]} Bxe4 {[%clk 01:01:27]}
{[%emt 00:03:23]} 19. Qxe4 {[%clk 00:41:06]} {[%emt 00:00:13]} b5 {[%clk
01:01:34]} {[%emt 00:00:24]} 20. Ba2 {[%clk 00:36:02]} {[%emt 00:05:33]} Rd8
{[%clk 00:57:14]} {[%emt 00:04:50]} 21. Kh1 {[%clk 00:32:14]} {[%emt 00:04:17]}
e6 {[%emt 00:16:12]} 22. f4 {[%clk 00:30:55]} gxf4 {[%clk 00:36:45]} {[%emt
00:07:08]} 23. Qxf4 {[%clk 00:22:34]} {[%emt 00:08:49]} Rf8 {[%clk 00:35:50]}
{[%emt 00:01:27]} 24. Qe4 {[%clk 00:18:47]} {[%emt 00:04:16]} b4 {[%clk
00:32:03]} {[%emt 00:04:18]} 25. Bf2 {[%clk 00:17:07]} {[%emt 00:02:10]} Qb5
{[%clk 00:31:30]} {[%emt 00:01:02]} 26. Bc4 {[%clk 00:16:29]} {[%emt 00:01:08]}
Qb7 {[%clk 00:31:34]} {[%emt 00:00:27]} 27. Bh4 {[%clk 00:13:55]} {[%emt
00:03:02]} Rd7 {[%clk 00:30:11]} {[%emt 00:01:54]} 28. Bxe6 {[%clk 00:10:06]}
{[%emt 00:04:20]} fxe6 {[%clk 00:28:42]} {[%emt 00:01:59]} 29. Qg6+ {[%clk
00:10:13]} {[%emt 00:00:22]} Rff7 {[%clk 00:26:43]} {[%emt 00:02:29]} 30. Rxf7
{[%clk 00:07:40]} {[%emt 00:03:02]} Rxf7 {[%clk 00:26:31]} {[%emt 00:00:43]} 31.
Rd1 {[%clk 00:07:53]} {[%emt 00:00:18]} 1-0